[Event "Estonian Chess Championship 2021"]
[Site "Tallinn, Paul Keres Chess House, Estonia"]
[Date "2021.12.18"]
[Round "8.3"]
[White "Timoshin, Andrei"]
[Black "Soot, Margus"]
[Result "1-0"]
[TimeControl "90 minutes for first 40 moves and 15 min. for the rest of the game with 30 sec."]
[WhiteFideId "4503503"]
[BlackFideId "4501160"]
[WhiteElo "2150"]
[BlackElo "2117"]

1. e4 {[%clk 01:30:57]} {[%emt 00:00:02]} c6 {[%clk 01:29:20]} {[%emt
00:01:41]} 2. Nf3 {[%clk 01:31:03]} {[%emt 00:00:24]} d5 {[%clk 01:29:46]}
{[%emt 00:00:04]} 3. Nc3 {[%clk 01:31:25]} {[%emt 00:00:08]} dxe4 {[%clk
01:30:12]} {[%emt 00:00:04]} 4. Nxe4 {[%clk 01:31:48]} {[%emt 00:00:06]} Nd7
{[%clk 01:30:39]} {[%emt 00:00:03]} 5. Bc4 {[%clk 01:31:52]} {[%emt 00:00:25]}
e6 {[%clk 01:30:55]} {[%emt 00:00:15]} 6. d4 {[%clk 01:31:56]} {[%emt
00:00:26]} Ngf6 {[%clk 01:31:21]} {[%emt 00:00:04]} 7. Nxf6+ {[%clk 01:32:09]}
{[%emt 00:00:18]} Nxf6 {[%clk 01:31:49]} {[%emt 00:00:01]} 8. Qe2 {[%clk
01:32:25]} {[%emt 00:00:14]} Bd6 {[%clk 01:32:02]} {[%emt 00:00:16]} 9. Bd2
{[%clk 01:32:34]} {[%emt 00:00:21]} O-O {[%clk 01:32:01]} {[%emt 00:00:31]} 10.
O-O-O {[%clk 01:32:11]} {[%emt 00:00:53]} Qc7 {[%clk 01:31:07]} {[%emt
00:01:25]} 11. Kb1 {[%clk 01:31:22]} {[%emt 00:01:19]} c5 {[%clk 01:31:23]}
{[%emt 00:00:14]} 12. g4 {[%clk 01:26:43]} {[%emt 00:05:08]} a6 {[%clk
01:26:03]} {[%emt 00:05:50]} 13. g5 {[%clk 01:26:07]} {[%emt 00:01:06]} Nh5
{[%clk 01:19:51]} {[%emt 00:06:42]} 14. dxc5 {[%clk 01:16:43]} {[%emt
00:09:54]} Qxc5 {[%clk 01:12:40]} {[%emt 00:07:42]} 15. Be3 {[%clk 01:16:01]}
{[%emt 00:01:12]} Qc7 {[%clk 01:13:04]} {[%emt 00:00:06]} 16. Rd4 {[%clk
00:38:27]} {[%emt 00:38:04]} g6 {[%clk 00:49:48]} {[%emt 00:23:46]} 17. Rhd1
{[%clk 00:32:25]} {[%emt 00:06:32]} Bc5 {[%clk 00:44:14]} {[%emt 00:06:04]} 18.
Rh4 {[%clk 00:31:57]} {[%emt 00:00:57]} Ng7 {[%clk 00:40:50]} {[%emt 00:03:54]}
19. Bf4 {[%clk 00:25:41]} {[%emt 00:06:46]} Qb6 {[%clk 00:36:30]} {[%emt
00:04:51]} 20. Ne5 {[%clk 00:19:44]} {[%emt 00:06:26]} Bd4 {[%clk 00:32:56]}
{[%emt 00:04:05]} 21. Bb3 {[%clk 00:07:16]} {[%emt 00:12:58]} Nf5 {[%clk
00:33:17]} {[%emt 00:00:09]} 22. Rh3 {[%clk 00:07:36]} {[%emt 00:00:09]} a5
{[%clk 00:29:03]} {[%emt 00:04:45]} 23. c3 {[%clk 00:06:13]} {[%emt 00:01:53]}
Bc5 {[%clk 00:29:03]} {[%emt 00:00:29]} 24. Ng4 {[%clk 00:04:51]} {[%emt
00:01:53]} Be7 {[%clk 00:29:18]} {[%emt 00:00:15]} 25. Bc2 {[%clk 00:04:55]}
{[%emt 00:00:26]} e5 {[%clk 00:29:30]} {[%emt 00:00:18]} 26. Qxe5 {[%clk
00:03:35]} {[%emt 00:01:50]} h5 {[%clk 00:29:47]} {[%emt 00:00:13]} 27. gxh6
{[%clk 00:03:39]} {[%emt 00:00:26]} f6 {[%clk 00:29:26]} {[%emt 00:00:51]} 28.
Qe2 {[%clk 00:03:09]} {[%emt 00:00:59]} a4 {[%clk 00:28:48]} {[%emt 00:01:08]}
29. h7+ {[%clk 00:01:38]} {[%emt 00:02:01]} Kh8 {[%clk 00:29:14]} {[%emt
00:00:03]} 30. Ka1 {[%clk 00:01:46]} {[%emt 00:00:23]} a3 {[%clk 00:29:00]}
{[%emt 00:00:44]} 31. b3 {[%clk 00:01:51]} {[%emt 00:00:25]} Rf7 {[%clk
00:27:53]} {[%emt 00:01:38]} 32. Rhd3 {[%clk 00:01:00]} {[%emt 00:01:21]} Be6
{[%clk 00:28:02]} {[%emt 00:00:21]} 33. Ne3 {[%clk 00:00:47]} {[%emt 00:00:43]}
Nxe3 {[%clk 00:27:30]} {[%emt 00:01:02]} 34. Rxe3 {[%clk 00:01:00]} {[%emt
00:00:17]} Ra6 {[%clk 00:27:06]} {[%emt 00:00:54]} 35. Bxg6 {[%clk 00:01:04]}
{[%emt 00:00:26]} Rg7 {[%clk 00:26:51]} {[%emt 00:00:45]} 36. Bd3 {[%clk
00:01:08]} {[%emt 00:00:26]} Bc5 {[%clk 00:27:13]} {[%emt 00:00:08]} 37. Rxe6
{[%clk 00:00:48]} {[%emt 00:00:51]} Qxe6 {[%clk 00:27:26]} {[%emt 00:00:18]} 38.
Bxa6 {[%clk 00:01:12]} {[%emt 00:00:06]} Qxa6 {[%clk 00:27:04]} {[%emt
00:00:52]} 39. Rd8+ {[%clk 00:01:40]} {[%emt 00:00:01]} Kxh7 {[%clk 00:27:33]}
{[%emt 00:00:02]} 40. Qh5# {[%clk 00:17:09]} 1-0

[Event "Estonian Chess Championship 2021"]
[Site "Tallinn, Paul Keres Chess House, Estonia"]
[Date "2021.12.18"]
[Round "8.4"]
[White "Pedmanson, Albert"]
[Black "Shishkov, Andrei"]
[Result "0-1"]
[TimeControl "90 minutes for first 40 moves and 15 min. for the rest of the game with 30 sec."]
[BlackTitle "IM"]
[WhiteFideId "4505778"]
[BlackFideId "4500563"]
[WhiteElo "1888"]
[BlackElo "2405"]

1. d4 {[%clk 01:30:41]} {[%emt 00:00:18]} Nf6 {[%clk 01:30:52]} {[%emt
00:00:09]} 2. Nf3 {[%clk 01:30:45]} {[%emt 00:00:26]} e6 {[%clk 01:31:16]}
{[%emt 00:00:06]} 3. Bf4 {[%clk 01:31:02]} {[%emt 00:00:13]} d5 {[%clk
01:31:21]} {[%emt 00:00:26]} 4. e3 {[%clk 01:31:11]} {[%emt 00:00:21]} Bd6
{[%clk 01:31:43]} {[%emt 00:00:08]} 5. Bg3 {[%clk 01:31:31]} {[%emt 00:00:10]}
b6 {[%clk 01:30:50]} {[%emt 00:01:24]} 6. c3 {[%clk 01:31:26]} {[%emt
00:00:35]} Bb7 {[%clk 01:30:26]} {[%emt 00:00:54]} 7. Bd3 {[%clk 01:30:54]}
{[%emt 00:01:02]} O-O {[%clk 01:29:21]} {[%emt 00:01:35]} 8. Nbd2 {[%clk
01:29:54]} {[%emt 00:01:29]} Ne4 {[%clk 01:22:44]} {[%emt 00:07:07]} 9. Qc2
{[%clk 01:16:29]} {[%emt 00:13:55]} f5 {[%clk 01:22:40]} {[%emt 00:00:34]} 10.
Ne5 {[%clk 01:15:30]} {[%emt 00:01:29]} Nd7 {[%clk 01:07:49]} {[%emt 00:15:21]}
11. Bxe4 {[%clk 01:11:03]} {[%emt 00:04:57]} fxe4 {[%clk 01:07:01]} {[%emt
00:01:19]} 12. O-O-O {[%clk 00:54:18]} {[%emt 00:17:14]} Bxe5 {[%clk 01:04:48]}
{[%emt 00:02:43]} 13. dxe5 {[%clk 00:54:24]} {[%emt 00:00:24]} Ba6 {[%clk
01:02:32]} {[%emt 00:02:46]} 14. f3 {[%clk 00:43:01]} {[%emt 00:11:53]} Bd3
{[%clk 00:56:31]} {[%emt 00:06:31]} 15. Qa4 {[%clk 00:39:46]} {[%emt 00:03:45]}
Nc5 {[%clk 00:35:24]} {[%emt 00:21:37]} 16. Qc6 {[%clk 00:39:48]} {[%emt
00:00:28]} Be2 {[%clk 00:28:35]} {[%emt 00:07:18]} 17. Nxe4 {[%clk 00:34:11]}
{[%emt 00:06:07]} Nd3+ {[%clk 00:18:35]} {[%emt 00:10:30]} 18. Rxd3 {[%clk
00:30:25]} {[%emt 00:04:16]} Bxd3 {[%clk 00:19:04]} {[%emt 00:00:01]} 19. Qxe6+
{[%clk 00:29:03]} {[%emt 00:01:52]} Kh8 {[%clk 00:19:33]} 20. Nf6 {[%clk
00:21:19]} {[%emt 00:08:14]} Bg6 {[%clk 00:11:15]} {[%emt 00:08:48]} 21. Bh4
{[%clk 00:14:43]} {[%emt 00:07:06]} gxf6 {[%clk 00:09:36]} {[%emt 00:02:09]} 22.
Rd1 {[%clk 00:13:45]} {[%emt 00:01:28]} c6 {[%clk 00:09:23]} {[%emt 00:00:44]}
23. Qxc6 {[%clk 00:09:17]} {[%emt 00:04:58]} Kg8 {[%clk 00:09:18]} {[%emt
00:00:34]} 24. Bxf6 {[%clk 00:08:06]} {[%emt 00:01:41]} Qe8 {[%clk 00:08:31]}
{[%emt 00:01:17]} 25. Qxd5+ {[%clk 00:07:40]} {[%emt 00:00:55]} Bf7 {[%clk
00:04:39]} {[%emt 00:04:21]} 26. Qb7 {[%clk 00:02:52]} {[%emt 00:05:18]} Qc8
{[%clk 00:03:28]} {[%emt 00:01:41]} 27. Qe4 {[%clk 00:01:17]} {[%emt 00:02:06]}
Qe6 {[%clk 00:03:51]} {[%emt 00:00:07]} 28. b3 {[%clk 00:00:34]} {[%emt
00:01:12]} Rac8 {[%clk 00:03:07]} {[%emt 00:01:14]} 29. c4 {[%clk 00:00:44]}
{[%emt 00:00:21]} Bg6 {[%clk 00:02:02]} {[%emt 00:01:34]} 30. Qh4 {[%clk
00:00:51]} {[%emt 00:00:22]} b5 {[%clk 00:01:41]} {[%emt 00:00:53]} 31. Rd6
{[%clk 00:01:00]} {[%emt 00:00:21]} Qe8 {[%clk 00:01:32]} {[%emt 00:00:39]} 32.
e6 {[%clk 00:00:42]} {[%emt 00:00:48]} bxc4 {[%emt 00:00:12]} 33. Rd7 {[%clk
00:00:32]} {[%emt 00:00:40]} cxb3+ {[%clk 00:01:44]} {[%emt 00:00:37]} 34. Kd1
{[%clk 00:00:32]} {[%emt 00:00:30]} Rxf6 {[%clk 00:01:09]} {[%emt 00:01:05]} 35.
Qxf6 {[%clk 00:00:45]} {[%emt 00:00:16]} Qf8 {[%clk 00:01:13]} {[%emt
00:00:27]} 36. Qxf8+ {[%emt 00:00:41]} Kxf8 {[%clk 00:01:00]} {[%emt 00:00:41]}
37. e7+ {[%clk 00:00:31]} {[%emt 00:00:34]} Ke8 {[%clk 00:00:35]} {[%emt
00:00:54]} 38. Rd8+ {[%clk 00:00:55]} {[%emt 00:00:06]} Rxd8+ {[%clk 00:01:04]}
{[%emt 00:00:01]} 39. exd8=Q+ {[%clk 00:01:14]} {[%emt 00:00:11]} Kxd8 {[%clk
00:01:31]} {[%emt 00:00:03]} 40. axb3 {[%clk 00:16:33]} {[%emt 00:00:11]} a5
{[%clk 00:16:22]} {[%emt 00:00:39]} 41. Kd2 {[%clk 00:16:36]} {[%emt 00:00:26]}
Kd7 {[%clk 00:16:33]} {[%emt 00:00:19]} 42. Kc3 {[%clk 00:15:26]} {[%emt
00:01:41]} Kc6 {[%clk 00:16:37]} {[%emt 00:00:25]} 43. b4 {[%clk 00:10:15]}
{[%emt 00:05:41]} a4 {[%clk 00:17:02]} {[%emt 00:00:05]} 44. Kb2 {[%clk
00:10:41]} {[%emt 00:00:04]} Kd5 {[%clk 00:16:59]} {[%emt 00:00:33]} 45. Ka3
{[%clk 00:08:18]} {[%emt 00:02:53]} Be8 {[%clk 00:17:25]} {[%emt 00:00:03]} 46.
h4 {[%clk 00:08:38]} {[%emt 00:00:10]} Kc4 {[%clk 00:16:30]} {[%emt 00:01:25]}
47. g4 {[%clk 00:02:26]} {[%emt 00:06:43]} Kd3 {[%clk 00:16:54]} {[%emt
00:00:06]} 48. e4 {[%clk 00:02:32]} {[%emt 00:00:24]} Ke3 {[%clk 00:16:36]}
{[%emt 00:00:47]} 49. g5 {[%clk 00:02:18]} {[%emt 00:00:44]} Kf4 {[%clk
00:15:53]} {[%emt 00:01:13]} 50. Kb2 {[%clk 00:01:53]} {[%emt 00:00:56]} Bh5
{[%clk 00:08:16]} {[%emt 00:08:07]} 51. b5 {[%clk 00:01:30]} {[%emt 00:00:53]}
Bxf3 {[%clk 00:08:33]} {[%emt 00:00:13]} 52. Ka3 {[%clk 00:00:48]} {[%emt
00:01:12]} Bxe4 {[%clk 00:08:55]} {[%emt 00:00:08]} 53. Kxa4 {[%clk 00:01:15]}
{[%emt 00:00:03]} Kg4 {[%clk 00:09:13]} {[%emt 00:00:11]} 54. Kb3 {[%clk
00:01:18]} {[%emt 00:00:27]} Kxh4 {[%clk 00:09:30]} {[%emt 00:00:13]} 55. Kc3
{[%clk 00:01:22]} {[%emt 00:00:26]} Kxg5 {[%clk 00:09:52]} {[%emt 00:00:08]} 56.
Kd2 {[%clk 00:01:48]} {[%emt 00:00:03]} Kf4 {[%clk 00:10:05]} {[%emt 00:00:17]}
0-1

[Event "Estonian Chess Championship 2021"]
[Site "Tallinn, Paul Keres Chess House, Estonia"]
[Date "2021.12.18"]
[Round "8.5"]
[White "Hansson, Markus"]
[Black "Volodin, Aleksandr"]
[Result "0-1"]
[TimeControl "90 minutes for first 40 moves and 15 min. for the rest of the game with 30 sec."]
[BlackTitle "GM"]
[WhiteFideId "4505620"]
[BlackFideId "4501950"]
[WhiteElo "1662"]
[BlackElo "2461"]

1. e4 {[%clk 01:30:57]} {[%emt 00:00:01]} c5 {[%clk 01:24:45]} {[%emt
00:06:16]} 2. Nc3 {[%clk 01:31:17]} {[%emt 00:00:10]} e6 {[%clk 01:21:43]}
{[%emt 00:03:32]} 3. Nge2 {[%clk 01:31:37]} {[%emt 00:00:10]} a6 {[%clk
01:21:08]} {[%emt 00:01:06]} 4. a4 {[%clk 01:31:23]} {[%emt 00:00:44]} Nc6
{[%clk 01:20:17]} {[%emt 00:01:21]} 5. g3 {[%clk 01:31:36]} {[%emt 00:00:17]}
d5 {[%clk 01:19:59]} {[%emt 00:00:48]} 6. exd5 {[%clk 01:31:54]} {[%emt
00:00:13]} exd5 {[%clk 01:20:24]} {[%emt 00:00:05]} 7. d4 {[%clk 01:32:14]}
{[%emt 00:00:09]} Bg4 {[%clk 01:20:16]} {[%emt 00:00:38]} 8. Bg2 {[%clk
01:32:21]} {[%emt 00:00:23]} Nxd4 {[%clk 01:19:16]} {[%emt 00:01:30]} 9. f3
{[%clk 01:31:42]} {[%emt 00:01:09]} Bxf3 {[%clk 01:09:01]} {[%emt 00:10:45]} 10.
O-O {[%clk 01:31:26]} {[%emt 00:00:45]} Nxe2+ {[%clk 01:09:00]} {[%emt
00:00:32]} 11. Nxe2 {[%clk 01:31:45]} {[%emt 00:00:10]} Bxg2 {[%clk 01:09:21]}
{[%emt 00:00:09]} 12. Kxg2 {[%clk 01:32:10]} {[%emt 00:00:05]} Nf6 {[%clk
01:09:22]} {[%emt 00:00:29]} 13. Bg5 {[%clk 01:29:32]} {[%emt 00:03:08]} Be7
{[%clk 01:09:45]} {[%emt 00:00:08]} 14. Nf4 {[%clk 01:27:08]} {[%emt 00:02:54]}
O-O {[%clk 01:09:33]} {[%emt 00:00:42]} 15. Bxf6 {[%clk 01:26:53]} {[%emt
00:00:44]} Bxf6 {[%clk 01:09:59]} {[%emt 00:00:05]} 16. Qxd5 {[%clk 01:26:57]}
{[%emt 00:00:25]} Qb6 {[%clk 01:09:01]} {[%emt 00:01:27]} 17. Nh5 {[%clk
01:20:02]} {[%emt 00:07:26]} Bxb2 {[%clk 01:04:36]} {[%emt 00:04:55]} 18. Rab1
{[%clk 01:19:43]} {[%emt 00:00:50]} Rad8 {[%clk 01:04:49]} {[%emt 00:00:16]} 19.
Qg5 {[%clk 01:19:30]} {[%emt 00:00:43]} Qc6+ {[%clk 01:04:30]} {[%emt
00:00:48]} 20. Kh3 {[%clk 01:18:20]} {[%emt 00:01:41]} Rd5 {[%clk 01:00:27]}
{[%emt 00:04:34]} 21. Rf5 {[%clk 01:09:44]} {[%emt 00:09:06]} Rxf5 {[%clk
01:00:42]} {[%emt 00:00:15]} 22. Qxf5 {[%clk 01:10:10]} {[%emt 00:00:04]} g6
{[%clk 01:00:34]} {[%emt 00:00:38]} 23. Qg4 {[%clk 01:09:25]} {[%emt 00:01:15]}
Bd4 {[%clk 00:59:37]} {[%emt 00:01:26]} 24. a5 {[%clk 01:08:45]} {[%emt
00:01:11]} Re8 {[%clk 00:52:55]} {[%emt 00:07:12]} 25. Rb6 {[%clk 01:07:58]}
{[%emt 00:01:18]} Qh1 {[%clk 00:48:12]} {[%emt 00:05:12]} 26. Qd7 {[%clk
00:57:41]} {[%emt 00:10:47]} Qf1+ {[%clk 00:48:28]} {[%emt 00:00:14]} 27. Kh4
{[%clk 00:58:02]} {[%emt 00:00:09]} Re4+ {[%clk 00:48:04]} {[%emt 00:00:53]} 28.
Nf4 {[%clk 00:58:26]} {[%emt 00:00:06]} Rxf4+ {[%clk 00:47:45]} {[%emt
00:00:49]} 29. gxf4 {[%clk 00:58:50]} {[%emt 00:00:06]} Qxf4+ {[%clk 00:48:05]}
{[%emt 00:00:09]} 30. Qg4 {[%clk 00:58:48]} {[%emt 00:00:33]} Qxh2+ {[%clk
00:48:23]} {[%emt 00:00:12]} 31. Kg5 {[%clk 00:58:20]} {[%emt 00:00:58]} h6#
{[%clk 00:48:45]} {[%emt 00:00:08]} 0-1

[Event "Estonian Chess Championship 2021"]
[Site "Tallinn, Paul Keres Chess House, Estonia"]
[Date "2021.12.19"]
[Round "9.1"]
[White "Volodin, Aleksandr"]
[Black "Kanep, Meelis"]
[Result "1/2-1/2"]
[TimeControl "90 minutes for first 40 moves and 15 min. for the rest of the game with 30 sec."]
[WhiteTitle "GM"]
[BlackTitle "GM"]
[WhiteFideId "4501950"]
[BlackFideId "4501047"]
[WhiteElo "2461"]
[BlackElo "2433"]

1. d4 {[%clk 01:30:45]} {[%emt 00:00:14]} d5 {[%clk 01:29:54]} {[%emt
00:01:06]} 2. c4 {[%clk 01:31:10]} {[%emt 00:00:06]} c6 {[%clk 01:30:05]}
{[%emt 00:00:19]} 3. cxd5 {[%clk 01:31:35]} {[%emt 00:00:05]} cxd5 {[%clk
01:30:30]} {[%emt 00:00:05]} 4. Nf3 {[%clk 01:31:57]} {[%emt 00:00:07]} Nf6
{[%clk 01:30:39]} {[%emt 00:00:21]} 5. Nc3 {[%clk 01:32:15]} {[%emt 00:00:12]}
Nc6 {[%clk 01:30:46]} {[%emt 00:00:23]} 6. Bf4 {[%clk 01:32:39]} {[%emt
00:00:06]} Bf5 {[%clk 01:30:43]} {[%emt 00:00:33]} 7. e3 {[%clk 01:32:55]}
{[%emt 00:00:15]} e6 {[%clk 01:31:07]} {[%emt 00:00:07]} 8. Bd3 {[%clk
01:33:13]} {[%emt 00:00:12]} Bxd3 {[%clk 01:31:29]} {[%emt 00:00:07]} 9. Qxd3
{[%clk 01:33:38]} {[%emt 00:00:04]} Bd6 {[%clk 01:31:48]} {[%emt 00:00:11]} 10.
Bxd6 {[%clk 01:33:57]} {[%emt 00:00:12]} Qxd6 {[%clk 01:32:11]} {[%emt
00:00:07]} 11. O-O {[%clk 01:34:20]} {[%emt 00:00:06]} O-O {[%clk 01:32:23]}
{[%emt 00:00:19]} 12. a3 {[%clk 01:34:15]} {[%emt 00:00:35]} 1/2-1/2

[Event "Estonian Chess Championship 2021"]
[Site "Tallinn, Paul Keres Chess House, Estonia"]
[Date "2021.12.19"]
[Round "9.2"]
[White "Shishkov, Andrei"]
[Black "Hansson, Markus"]
[Result "1-0"]
[TimeControl "90 minutes for first 40 moves and 15 min. for the rest of the game with 30 sec."]
[WhiteTitle "IM"]
[WhiteFideId "4500563"]
[BlackFideId "4505620"]
[WhiteElo "2405"]
[BlackElo "1662"]

1. d4 {[%clk 01:30:58]} {[%emt 00:00:03]} d5 {[%clk 01:30:45]} {[%emt
00:00:13]} 2. c4 {[%clk 01:31:25]} {[%emt 00:00:04]} c6 {[%clk 01:31:02]}
{[%emt 00:00:13]} 3. e3 {[%clk 01:31:51]} {[%emt 00:00:05]} Nf6 {[%clk
01:29:51]} {[%emt 00:01:41]} 4. Nc3 {[%clk 01:32:11]} {[%emt 00:00:10]} e6
{[%clk 01:30:09]} {[%emt 00:00:12]} 5. b3 {[%clk 01:32:36]} {[%emt 00:00:06]}
Nbd7 {[%clk 01:26:25]} {[%emt 00:04:13]} 6. Bb2 {[%clk 01:32:46]} {[%emt
00:00:20]} Be7 {[%clk 01:22:12]} {[%emt 00:04:42]} 7. Bd3 {[%clk 01:32:25]}
{[%emt 00:00:51]} b6 {[%clk 01:21:16]} {[%emt 00:01:26]} 8. Nf3 {[%clk
01:32:47]} {[%emt 00:00:08]} O-O {[%clk 01:21:26]} {[%emt 00:00:20]} 9. O-O
{[%clk 01:33:11]} {[%emt 00:00:06]} Bb7 {[%clk 01:21:11]} {[%emt 00:00:45]} 10.
Qe2 {[%clk 01:33:22]} {[%emt 00:00:19]} Rc8 {[%clk 01:19:25]} {[%emt 00:02:16]}
11. Rad1 {[%clk 01:30:51]} {[%emt 00:03:01]} Re8 {[%clk 01:17:55]} {[%emt
00:02:00]} 12. Rfe1 {[%clk 01:30:29]} {[%emt 00:00:52]} c5 {[%clk 01:16:24]}
{[%emt 00:02:01]} 13. cxd5 {[%clk 01:30:22]} {[%emt 00:00:37]} exd5 {[%clk
01:16:30]} {[%emt 00:00:24]} 14. Bf5 {[%clk 01:29:01]} {[%emt 00:01:51]} Rb8
{[%clk 01:13:36]} {[%emt 00:03:23]} 15. Ba1 {[%clk 01:23:10]} {[%emt 00:06:21]}
Bf8 {[%clk 01:12:09]} {[%emt 00:01:57]} 16. Qb2 {[%clk 01:18:01]} {[%emt
00:05:38]} Ne4 {[%clk 01:01:24]} {[%emt 00:11:15]} 17. Nxe4 {[%clk 00:56:17]}
{[%emt 00:22:15]} dxe4 {[%clk 01:01:32]} {[%emt 00:00:22]} 18. Ne5 {[%clk
00:56:15]} {[%emt 00:00:32]} Nxe5 {[%clk 00:59:24]} {[%emt 00:02:38]} 19. dxe5
{[%clk 00:56:41]} {[%emt 00:00:05]} Qg5 {[%clk 00:58:58]} {[%emt 00:00:54]} 20.
Bd7 {[%clk 00:56:37]} {[%emt 00:00:35]} Re7 {[%clk 00:56:43]} {[%emt 00:02:45]}
21. Rd2 {[%clk 00:37:11]} {[%emt 00:19:56]} Bc8 {[%clk 00:48:26]} {[%emt
00:08:47]} 22. e6 {[%clk 00:29:01]} {[%emt 00:08:40]} fxe6 {[%clk 00:29:18]}
{[%emt 00:19:37]} 23. h4 {[%clk 00:25:31]} {[%emt 00:04:00]} Qh5 {[%clk
00:26:03]} {[%emt 00:03:45]} 24. Qe5 {[%clk 00:25:25]} {[%emt 00:00:37]} Qxe5
{[%clk 00:26:27]} {[%emt 00:00:06]} 25. Bxe5 {[%clk 00:25:54]} Ra8 {[%clk
00:26:48]} {[%emt 00:00:09]} 26. Bc6 {[%clk 00:22:49]} {[%emt 00:03:35]} Bb7
{[%clk 00:27:12]} {[%emt 00:00:07]} 27. Bxb7 {[%clk 00:23:03]} {[%emt
00:00:16]} Rxb7 {[%clk 00:27:40]} {[%emt 00:00:01]} 28. Red1 {[%clk 00:23:24]}
{[%emt 00:00:08]} Be7 {[%clk 00:25:28]} {[%emt 00:02:43]} 29. Rd7 {[%clk
00:23:05]} {[%emt 00:00:49]} Rxd7 {[%clk 00:25:18]} {[%emt 00:00:40]} 30. Rxd7
{[%clk 00:23:33]} Bf6 {[%clk 00:23:24]} {[%emt 00:02:24]} 31. Bxf6 {[%clk
00:23:29]} {[%emt 00:00:34]} gxf6 {[%clk 00:23:53]} {[%emt 00:00:01]} 32. g4
{[%clk 00:22:17]} {[%emt 00:01:42]} Rf8 {[%clk 00:19:08]} {[%emt 00:05:14]} 33.
Rxa7 {[%clk 00:21:15]} {[%emt 00:01:33]} Rf7 {[%clk 00:19:32]} {[%emt
00:00:06]} 34. Ra8+ {[%clk 00:21:10]} {[%emt 00:00:35]} Kg7 {[%clk 00:18:07]}
{[%emt 00:01:55]} 35. Rb8 {[%clk 00:14:17]} {[%emt 00:07:23]} Ra7 {[%clk
00:18:31]} {[%emt 00:00:06]} 36. Rxb6 {[%clk 00:14:09]} {[%emt 00:00:38]} Rxa2
{[%clk 00:18:55]} {[%emt 00:00:06]} 37. Rxe6 {[%clk 00:14:04]} {[%emt
00:00:35]} Rb2 {[%emt 00:00:59]} 38. Rxe4 {[%clk 00:13:57]} {[%emt 00:00:13]}
Rxb3 {[%clk 00:19:14]} {[%emt 00:00:05]} 39. Kg2 {[%clk 00:14:08]} {[%emt
00:00:18]} Rb4 {[%clk 00:15:40]} {[%emt 00:04:04]} 40. Kf3 {[%clk 00:29:02]}
{[%emt 00:00:35]} c4 {[%clk 00:25:40]} {[%emt 00:05:31]} 41. Re7+ {[%clk
00:27:24]} {[%emt 00:02:08]} Kg6 {[%clk 00:25:48]} {[%emt 00:00:22]} 42. h5+
{[%clk 00:27:00]} {[%emt 00:00:53]} Kh6 {[%clk 00:25:20]} {[%emt 00:00:59]} 43.
Rf7 {[%clk 00:25:42]} {[%emt 00:01:47]} Rb6 {[%clk 00:23:48]} {[%emt 00:02:03]}
44. Rc7 {[%clk 00:25:42]} {[%emt 00:00:30]} Rb4 {[%clk 00:23:57]} {[%emt
00:00:21]} 45. Kf4 {[%clk 00:18:36]} {[%emt 00:07:35]} c3+ {[%clk 00:21:21]}
{[%emt 00:03:06]} 46. Kf5 {[%clk 00:17:31]} {[%emt 00:01:35]} Rb2 {[%clk
00:15:09]} {[%emt 00:06:42]} 47. f4 {[%clk 00:16:51]} {[%emt 00:01:09]} Rb5+
{[%clk 00:15:35]} {[%emt 00:00:04]} 48. Kxf6 {[%clk 00:16:59]} {[%emt
00:00:22]} Rb6+ {[%clk 00:15:30]} {[%emt 00:00:36]} 49. Kf5 {[%clk 00:17:15]}
{[%emt 00:00:13]} Rb5+ {[%clk 00:15:30]} {[%emt 00:00:31]} 50. Ke4 {[%clk
00:17:32]} {[%emt 00:00:13]} Rb3 {[%clk 00:15:12]} {[%emt 00:00:48]} 51. Kf3
{[%clk 00:17:05]} {[%emt 00:00:57]} Ra3 {[%clk 00:14:46]} {[%emt 00:00:57]} 52.
Kg3 {[%clk 00:17:05]} {[%emt 00:00:30]} Ra1 {[%clk 00:13:24]} {[%emt 00:01:52]}
53. Rxc3 {[%clk 00:17:23]} {[%emt 00:00:12]} Kg7 {[%clk 00:13:35]} {[%emt
00:00:20]} 54. Rc7+ {[%clk 00:17:45]} {[%emt 00:00:07]} Kh6 {[%clk 00:14:00]}
{[%emt 00:00:05]} 55. Rc6+ {[%clk 00:17:24]} {[%emt 00:00:52]} Kg7 {[%clk
00:14:25]} {[%emt 00:00:05]} 56. g5 {[%clk 00:17:36]} {[%emt 00:00:17]} Rg1+
{[%clk 00:14:34]} {[%emt 00:00:21]} 57. Kf3 {[%clk 00:17:58]} {[%emt 00:00:07]}
Rh1 {[%clk 00:14:58]} {[%emt 00:00:06]} 58. Kg4 {[%clk 00:17:56]} {[%emt
00:00:32]} Rg1+ {[%clk 00:15:25]} {[%emt 00:00:03]} 59. Kf5 {[%clk 00:18:17]}
{[%emt 00:00:09]} Ra1 {[%clk 00:15:47]} {[%emt 00:00:09]} 60. e4 {[%clk
00:18:38]} {[%emt 00:00:09]} Ra5+ {[%clk 00:16:10]} {[%emt 00:00:06]} 61. e5
{[%clk 00:18:59]} {[%emt 00:00:09]} Ra7 {[%clk 00:16:36]} {[%emt 00:00:04]} 62.
h6+ {[%clk 00:19:11]} {[%emt 00:00:17]} Kf7 {[%clk 00:16:59]} {[%emt 00:00:07]}
63. Rc8 {[%clk 00:19:34]} {[%emt 00:00:06]} Re7 {[%clk 00:17:13]} {[%emt
00:00:15]} 64. Rh8 {[%clk 00:19:49]} {[%emt 00:00:15]} Re8 {[%clk 00:17:18]}
{[%emt 00:00:26]} 65. Rxe8 {[%clk 00:19:58]} {[%emt 00:00:21]} 1-0